bitfinex/quotes_ETHUSD_20220117
["timestamp","ask_amount","ask_price","bid_price","bid_amount"]
[1642392100934,0.00341054,3263.0,3262.1,0.00170527]
[1642392101324,0.00284211,3262.9,3262.1,0.00170527]
[1642392101522,0.00284211,3262.9,3262.1,3.19940406]
[1642392101723,0.00227369,3262.8,3262.1,0.00170527]
[1642392101926,0.00227369,3262.8,3262.2,0.00113685]
[1642392102122,17.73113685,3263.3,3262.2,0.00113685]
[1642392102123,0.00170527,3262.7,3262.2,0.367]
[1642392102522,0.00113684,3262.6,3262.2,0.367]
[1642392102722,0.01502933,3262.5,3262.2,0.367]
[1642392103122,0.01502933,3263.1,3262.2,0.367]
[1642392103325,0.00454739,3263.2,3262.2,0.367]
[1642392103524,0.00341054,3263.0,3262.3,0.03814462]
[1642392103727,0.00397896,3263.1,3262.2,0.367]
[1642392103924,17.73113685,3263.3,3262.2,0.367]
[1642392103925,0.00284211,3262.9,3262.2,0.367]
[1642392104127,0.00341054,3263.0,3262.2,0.367]
[1642392104324,0.00227369,3262.8,3262.2,0.367]
[1642392104575,0.00284211,3262.9,3262.2,0.367]
[1642392104772,17.73113685,3263.3,3262.2,0.367]
[1642392104773,0.00170527,3262.7,3262.2,0.367]
[1642392104974,0.00227369,3262.8,3262.2,0.367]
[1642392105273,0.00170527,3262.7,3262.2,0.367]
[1642392105674,17.73113685,3263.3,3262.2,0.367]
[1642392105675,0.00113684,3262.6,3262.2,0.367]
[1642392106073,1.33823395,3263.2,3262.2,0.367]
[1642392106473,0.00397896,3263.1,3262.2,0.367]
[1642392106875,0.00341054,3263.0,3262.3,0.05783117]
[1642392107079,0.00341054,3263.0,3262.3,0.367]
[1642392107373,18.94577739,3263.8,3262.4,2.4]
[1642392107576,18.94577739,3263.8,3262.4,2.40284211]
[1642392107577,1.07264421,3263.5,3262.4,2.40284211]
[1642392107773,1.07264421,3263.5,3262.5,0.00227369]
[1642392107975,1.33226689,3263.6,3262.5,0.00227369]
[1642392108424,0.00341055,3263.5,3262.5,0.00227369]
[1642392108823,0.00397897,3263.6,3262.5,0.00227369]
[1642392109024,0.00284212,3263.4,3262.5,0.00227369]
[1642392109224,0.00341055,3263.5,3262.5,0.00227369]
[1642392109425,0.0022737,3263.3,3262.5,0.00227369]
[1642392109729,0.00170528,3263.2,3262.5,0.00227369]
[1642392110127,1.08575763,3263.1,3262.5,0.00227369]
[1642392110426,1.08462078,3263.1,3262.5,0.00227369]
[1642392111425,1.08462078,3263.1,3262.4,0.00284211]
[1642392111826,1.08462078,3263.1,3262.5,0.00275194]
[1642392112275,1.08462078,3263.1,3262.6,0.00170527]
[1642392112473,0.0022737,3263.3,3262.6,0.00170527]
[1642392112872,0.00170528,3263.2,3262.6,0.00170527]
[1642392113279,0.00113685,3263.1,3262.6,0.00170527]
[1642392113472,1.0,3264.1,3262.7,2.7]
[1642392113672,3.34093012,3264.1,3262.8,3.38379402]
[1642392113873,0.0022737,3263.5,3262.8,3.38549929]
[1642392114073,0.0022737,3263.5,3262.9,0.00113685]
[1642392114276,0.00170527,3263.4,3262.9,0.00113685]
[1642392114674,0.00113685,3263.3,3262.9,0.00113685]
[1642392115075,2.62873814,3264.0,3262.9,0.00113685]
[1642392115475,1.00454739,3263.9,3262.9,0.36813685]
[1642392115949,0.00397897,3263.8,3262.9,1.13685879]
[1642392116138,0.00397897,3263.8,3262.9,0.37088879]
[1642392116337,0.91652479,3264.1,3262.9,0.37088879]
[1642392116338,0.00341054,3263.7,3262.9,0.37088879]
[1642392116739,0.00284212,3263.6,3262.9,0.37088879]
[1642392117038,0.00511581,3264.0,3262.9,0.37364073]
[1642392117443,0.00454739,3263.9,3262.9,1.13961073]
[1642392117639,0.00454739,3263.9,3262.9,4.28083473]
[1642392117838,7.7902,3264.7,3263.0,0.80452173]
[1642392117839,0.00397897,3263.8,3263.0,0.80452173]
[1642392118140,0.00341054,3263.7,3263.1,3.66192669]
[1642392118340,0.00341054,3263.7,3263.1,1.5386]
[1642392118539,0.00284212,3263.6,3263.1,4.73376073]
[1642392118938,0.00738951,3264.4,3263.1,4.73376073]
[1642392119139,0.00738951,3264.4,3263.2,0.7659]
[1642392119338,0.00682108,3264.3,3263.3,0.367]
[1642392119576,1.11776751,3264.2,3263.3,0.367]
[1642392119775,1.12402017,3264.2,3263.3,0.367]
[1642392119981,0.00568424,3264.1,3263.3,0.367]
[1642392120376,20.60340536,3264.4,3263.3,0.367]
[1642392120377,0.00511581,3264.0,3263.3,0.367]
[1642392120775,0.00454739,3263.9,3263.3,0.367]
[1642392121177,0.00397897,3263.8,3263.3,0.36975194]
[1642392121578,0.00341054,3263.7,3263.3,0.36975194]
[1642392121976,0.00284212,3263.6,3263.3,0.43668073]
[1642392122176,0.00284212,3263.6,3263.3,0.43943267]
[1642392122377,0.01502933,3264.1,3263.3,0.43943267]
[1642392122581,1.13540083,3264.2,3263.3,0.43943267]
[1642392122777,0.00511581,3264.0,3263.3,0.43943267]
[1642392122977,0.00568424,3264.1,3263.3,0.50636146]
[1642392123177,0.00454739,3263.9,3263.4,0.05065072]
[1642392123423,0.00511581,3264.0,3263.4,0.367]
[1642392123622,0.01340659,3263.7,3263.4,0.367]
[1642392124024,0.00284212,3263.6,3263.4,0.367]
[1642392124424,0.00682108,3264.3,3263.4,0.367]
[1642392124823,0.00625266,3264.2,3263.4,0.367]
[1642392125023,0.00625266,3264.2,3263.4,0.43392879]
[1642392125228,0.00568424,3264.1,3263.4,0.43668073]
[1642392125631,0.00511581,3264.0,3263.4,0.43668073]
[1642392126027,0.00454739,3263.9,3263.4,0.43668073]
[1642392126230,0.01151034,3263.8,3263.4,0.50636146]
[1642392126429,0.00397897,3263.8,3263.5,0.03460521]
[1642392126627,0.00341054,3263.7,3263.6,5.767]
[1642392127084,0.00341054,3263.7,3263.6,0.367]
[1642392127777,0.00341054,3263.7,3263.6,1.13274]
[1642392127972,0.00341054,3263.7,3263.6,5.23274]
[1642392128574,0.00341054,3263.7,3263.6,6.37459898]
[1642392128874,2.62294495,3265.0,3263.7,4.9]
[1642392129074,2.62294495,3265.0,3264.2,0.76565]
[1642392129275,2.62294495,3265.0,3264.1,0.367]
[1642392130280,2.62294495,3265.0,3264.2,0.76565]
[1642392130476,0.00795793,3265.1,3264.2,0.76565]
[1642392130930,0.00738951,3265.0,3264.3,1.06162122]
[1642392131126,0.00738951,3265.0,3264.3,1.42862122]
[1642392131328,0.00682108,3264.9,3264.3,1.42862122]
[1642392131526,0.00682108,3264.9,3264.3,0.367]
[1642392131830,0.01502933,3264.7,3264.3,0.367]
[1642392132028,0.00625266,3264.8,3264.3,0.367]
[1642392132227,0.00511581,3264.6,3264.3,0.43392879]
[1642392132427,0.00568424,3264.7,3264.3,0.43392879]
[1642392132627,0.00454739,3264.5,3264.3,1.96785073]
[1642392132830,3.99699025,3265.9,3264.6,0.76556]
[1642392133128,1.27161369,3266.0,3264.8,0.76554]
[1642392133129,0.01080005,3265.6,3264.8,0.76554]
[1642392133529,0.00568424,3265.5,3264.9,0.367]
[1642392133927,5.40027234,3266.2,3264.9,0.367]
[1642392133928,0.00511581,3265.4,3264.9,0.367]
[1642392134127,0.00511581,3265.4,3264.9,1.13249]
[1642392134426,2.62243783,3265.8,3264.9,0.367]
[1642392134427,0.01957672,3265.3,3264.9,0.367]
[1642392134679,0.00454739,3265.3,3264.9,0.36975194]
[1642392134877,0.00397896,3265.2,3264.9,0.36975194]
[1642392135275,0.00341054,3265.1,3265.0,3.94925881]
[1642392135484,0.00341054,3265.1,3265.0,5.94261824]
[1642392135675,3.36774352,3266.2,3265.4,0.76533]
[1642392135876,1.27161369,3266.6,3265.4,1.13233]
[1642392136084,0.00568424,3266.1,3265.5,5.40181506]
[1642392136275,0.00568424,3266.1,3265.6,0.367]
[1642392136476,0.00511581,3266.0,3265.6,1.13232]
[1642392136875,0.00454739,3265.9,3265.6,1.13232]
[1642392137077,0.00454739,3265.9,3265.6,1.897584]
[1642392137277,0.00397897,3265.8,3265.6,1.897584]
[1642392137478,0.00397897,3265.8,3265.6,2.662904]
[1642392137680,0.00341054,3265.7,3265.6,2.01204]
[1642392137878,0.00341054,3265.7,3265.6,0.367]
[1642392140630,0.00341054,3265.7,3265.5,7.35261218]
[1642392140833,5.7,3265.6,3265.0,0.06968073]
[1642392141031,0.01206447,3265.1,3265.0,0.06968073]
[1642392141228,18.88950816,3265.1,3265.0,0.06968073]
[1642392142080,18.88950816,3265.1,3265.0,0.13936146]
[1642392142380,18.88950816,3265.1,3264.3,6.70810952]
[1642392142381,0.06462739,3264.8,3264.3,6.70810952]
[1642392142586,1.49629959,3264.7,3264.3,0.13660952]
[1642392142779,0.06462739,3264.8,3264.4,0.00397896]
[1642392143181,0.06187545,3264.8,3264.4,0.00397896]
[1642392143686,0.06187545,3264.8,3264.5,0.08076636]
[1642392143880,0.06187545,3264.8,3264.4,0.00397896]
[1642392144079,0.06187545,3264.8,3264.6,0.00284212]
[1642392144280,0.053784,3264.8,3264.4,0.00397896]
[1642392144480,1.22735556,3264.8,3264.4,0.00397896]
[1642392145082,17.98,3264.7,3264.4,0.00397896]
[1642392145281,17.98,3264.7,3264.1,0.06968073]
[1642392145482,19.91410455,3264.2,3264.1,0.06968073]
[1642392146033,0.00170527,3264.7,3264.1,0.06968073]
[1642392146432,0.00113684,3264.6,3264.2,0.00113685]
[1642392146930,17.98170527,3264.7,3264.2,0.00113685]
[1642392147130,18.94710859,3264.3,3264.2,0.00113685]
[1642392147330,20.20921074,3264.3,3264.2,0.00113685]
[1642392148031,21.50921074,3264.3,3264.2,0.00113685]
[1642392148431,21.20921074,3264.3,3264.2,0.00113685]
[1642392149032,20.20921074,3264.3,3264.2,0.00113685]
[1642392149433,22.83270738,3264.3,3264.2,0.00113685]
[1642392149691,24.13270738,3264.3,3264.2,0.00113685]
[1642392150493,22.83270738,3264.3,3264.2,0.00113685]
[1642392150693,23.83270738,3264.3,3264.2,0.00113685]
[1642392150896,22.83270738,3264.3,3264.2,0.00113685]
[1642392151897,21.57060523,3264.3,3264.2,0.00113685]
[1642392152692,2.62349664,3264.3,3264.2,0.00113685]
[1642392153350,1.41367445,3264.5,3264.2,0.00113685]
[1642392153740,0.92819958,3264.4,3264.2,0.00113685]
[1642392155140,1.41367445,3264.5,3264.3,0.0621514]
[1642392155341,0.00113684,3264.6,3264.2,0.00113685]
[1642392155539,0.00113684,3264.6,3264.3,0.05738301]
[1642392155743,0.00113684,3264.6,3264.3,0.73538301]
[1642392155942,0.00113684,3264.6,3264.3,3.93774783]
[1642392156141,0.00113684,3264.6,3264.3,0.678]
[1642392157076,0.00113684,3264.6,3264.3,3.89789468]
[1642392157277,0.00113684,3264.6,3264.5,5.65832549]
[1642392157477,3.22975211,3265.7,3264.6,6.95]
[1642392157679,3.22975211,3265.7,3264.7,0.441]
[1642392157875,0.00568424,3265.6,3264.8,0.441]
[1642392158078,0.00568424,3265.6,3264.9,0.441]
[1642392158276,0.00511582,3265.5,3265.0,0.441]
[1642392158677,0.00454739,3265.4,3265.0,0.441]
[1642392159082,0.00397897,3265.3,3265.0,0.441]
[1642392159476,0.00341054,3265.2,3265.1,3.56547]
[1642392159676,0.00341054,3265.2,3265.1,3.95647]
[1642392160077,0.00341054,3265.2,3265.1,4.34154739]
[1642392160276,0.00341054,3265.2,3265.1,4.34534052]
[1642392162625,0.00341054,3265.2,3265.1,1.15647]
[1642392163427,2.62214251,3266.8,3265.2,5.2]
[1642392163628,2.62214251,3266.8,3265.9,0.7653]
[1642392163828,2.62214251,3266.4,3265.9,2.47248]
[1642392164028,2.57214251,3266.4,3265.9,2.47248]
[1642392164230,0.00350072,3266.3,3265.9,0.9419]
[1642392164703,1.45381399,3266.1,3265.9,0.9419]
[1642392164898,1.45381399,3266.1,3265.1,0.441]
[1642392165100,1.45381399,3266.1,3264.7,0.441]
[1642392165101,0.00179545,3266.0,3264.7,0.441]
[1642392165399,0.01232508,3266.4,3264.8,0.00502563]
[1642392165400,1.37253074,3265.5,3264.8,0.00502563]
[1642392165598,0.00122703,3265.9,3264.8,0.00502563]
[1642392165799,0.01232508,3266.4,3264.6,0.7655761]
[1642392165800,0.00350072,3266.3,3264.6,0.7655761]
[1642392166202,0.0029323,3266.2,3264.7,1.20459405]
[1642392166598,0.0029323,3266.2,3264.8,0.00502563]
[1642392166599,1.35793467,3265.8,3264.8,0.00502563]
[1642392167399,1.35793467,3265.8,3264.6,0.00616248]
[1642392167599,17.98,3266.0,3264.4,0.77293932]
[1642392167799,17.98,3266.0,3264.4,2.76696932]
[1642392168000,0.00122703,3265.9,3264.5,0.0067309]
[1642392168199,0.00122703,3265.9,3264.5,2.3034152]
[1642392168630,0.00122703,3265.9,3264.8,0.76555]
[1642392168832,0.00122703,3265.9,3264.8,1.5311]
[1642392169030,0.00122703,3265.9,3265.0,0.06288091]
[1642392169230,0.00122703,3265.9,3264.9,1.21165721]
[1642392169434,0.00122703,3265.9,3265.1,0.00332036]
[1642392169630,0.00122703,3265.9,3265.0,0.00388878]
[1642392171029,0.00873305,3265.8,3265.0,0.00388878]
[1642392171230,0.00122703,3265.9,3265.0,0.00388878]
[1642392172277,0.00122703,3265.9,3265.1,0.04467182]
[1642392172475,0.00122703,3265.9,3265.0,0.00388878]
[1642392172674,0.00122703,3265.9,3265.2,0.00275194]
[1642392172875,0.00122703,3265.9,3265.0,0.00388878]
[1642392173576,0.00122703,3265.9,3265.1,2.54665]
[1642392173776,0.00122703,3265.9,3265.2,0.03520011]
[1642392173976,0.00122703,3265.9,3265.2,0.00275194]
[1642392174176,0.00122703,3265.9,3265.3,0.00218351]
[1642392174379,0.00122703,3265.9,3265.2,0.00275194]
[1642392174581,0.00122703,3265.9,3265.3,0.7653905]
[1642392174777,0.00122703,3265.9,3265.4,0.76542]
[1642392174979,0.00122703,3265.9,3265.4,0.76703509]
[1642392175276,0.00122703,3265.9,3265.5,0.00104666]
[1642392175945,0.01294926,3265.8,3265.5,0.00104666]
[1642392176144,0.00122703,3265.9,3265.5,0.00104666]
[1642392176341,0.00122703,3265.9,3264.5,0.0067309]
[1642392176543,0.44222703,3265.9,3264.5,0.0067309]
[1642392176742,2.99832516,3265.8,3264.5,0.0067309]
[1642392176943,20.16721019,3265.1,3264.5,0.0067309]
[1642392177146,17.98,3265.1,3264.3,0.00786775]
[1642392177643,10.996827,3265.9,3264.4,0.05382376]
[1642392177844,17.98,3265.8,3264.3,0.00786775]
[1642392178045,1.0,3265.7,3264.5,0.0067309]
[1642392178243,0.83970661,3265.4,3264.3,0.00786775]
[1642392178644,1.37297396,3265.0,3264.3,0.00786775]
[1642392179045,17.98,3264.9,3264.3,0.00786775]
[1642392179449,17.98,3264.9,3264.2,0.00843617]
[1642392180087,1.0,3264.8,3264.2,0.00843617]
[1642392180288,1.51229272,3264.3,3264.2,0.00843617]
[1642392180486,19.49229272,3264.3,3264.2,0.00843617]
[1642392180686,20.66017111,3264.3,3264.2,0.00843617]
[1642392180887,21.96017111,3264.3,3264.2,0.00843617]
[1642392181087,19.28,3264.3,3264.2,0.00843617]
[1642392182294,18.98,3264.3,3264.2,0.00843617]
[1642392183092,1.27161369,3265.5,3264.4,6.25]
[1642392183337,1.98593936,3265.7,3265.4,0.01228107]
[1642392183535,1.06648791,3266.7,3265.6,0.01202489]
[1642392183536,2.04148542,3265.8,3265.6,0.01202489]
[1642392183733,2.04148542,3265.8,3265.6,5.52402489]
[1642392183934,2.04148542,3265.8,3265.7,0.00113685]
[1642392184135,3.00062994,3265.8,3265.7,0.00113685]
[1642392184335,2.04148542,3265.8,3265.7,0.00113685]
[1642392185334,6.52498492,3266.0,3265.7,0.00113685]
[1642392185534,3.81819955,3266.0,3265.8,0.441]
[1642392185736,1.10593189,3266.0,3265.8,0.47513963]
[1642392186137,17.98,3266.9,3265.8,0.47513963]
[1642392186435,0.00511581,3266.8,3265.8,0.441]
[1642392186836,1.35839551,3266.4,3265.8,0.441]
[1642392187091,0.95117936,3265.9,3265.8,0.441]
[1642392187485,0.00227369,3266.3,3265.8,0.441]
[1642392187681,0.00227369,3266.3,3265.9,0.03431304]
[1642392187882,0.00170527,3266.2,3266.0,0.441]
[1642392188085,0.00170527,3266.2,3265.7,0.00113685]
[1642392188086,0.00170527,3266.2,3266.1,0.441]
[1642392188282,4.69081809,3267.5,3265.7,0.00113685]
[1642392188283,0.00113685,3266.1,3265.7,0.00113685]
[1642392188482,0.00170527,3266.2,3265.7,0.00113685]
[1642392188682,0.00568423,3266.9,3265.5,0.00227369]
[1642392188882,0.00568423,3266.9,3265.2,0.01223733]
[1642392188883,0.00113685,3266.1,3265.4,0.00284212]
[1642392189082,3.08202028,3266.8,3265.4,0.00284212]
[1642392189083,2.97425512,3266.7,3265.4,0.00284212]
[1642392189380,0.92508366,3266.4,3265.7,0.76538]
[1642392189882,0.00227369,3266.3,3265.7,0.86196947]
[1642392190087,0.00227369,3266.3,3265.7,2.03916947]
[1642392190282,2.62163256,3266.9,3265.8,1.53052]
[1642392190283,0.00170527,3266.2,3265.8,1.53052]
[1642392190681,2.62163256,3266.9,3265.9,0.368]
[1642392190682,0.00113685,3266.1,3265.9,0.368]
[1642392191946,0.00113685,3266.1,3266.0,5.98037]
[1642392193046,0.00113685,3266.1,3266.0,1.53037]
[1642392194248,0.00113685,3266.1,3266.0,4.23037]
[1642392194980,2.07399615,3267.3,3266.7,0.76512]
[1642392195176,2.07399615,3267.3,3266.7,1.530212]
[1642392195381,1.98081723,3267.3,3266.7,1.530212]
[1642392195778,1.98081723,3267.3,3266.7,2.295292]
[1642392195978,1.98081723,3267.3,3266.7,1.5302]
[1642392196377,1.98081723,3267.3,3266.7,3.0603424]
[1642392196578,1.98081723,3267.3,3266.8,0.03780995]
[1642392196978,0.00682108,3267.3,3266.7,3.0603424]
[1642392198179,0.00682108,3267.3,3267.0,1.52991]
[1642392198441,0.00682108,3267.3,3267.1,0.76495]
[1642392198841,0.00682108,3267.3,3267.0,2.29489]
[1642392200147,0.00682108,3267.3,3266.6,1.2424]
[1642392200148,1.23571909,3267.1,3266.6,1.2424]
[1642392200545,0.96104396,3266.9,3266.6,1.2424]
[1642392200741,0.96104396,3266.9,3265.8,1.2376]
[1642392200941,0.00397896,3266.8,3265.8,1.2376]
[1642392201142,0.00397896,3266.8,3265.9,0.00113685]
[1642392201342,0.00341054,3266.7,3265.9,0.00113685]
[1642392201541,0.00341054,3266.7,3266.0,0.76526]
[1642392201741,0.00341054,3266.7,3266.1,0.06655159]
[1642392201941,0.00284211,3266.6,3266.1,0.3]
[1642392202386,0.00227369,3266.5,3266.1,0.6]
[1642392202882,0.00170527,3266.4,3266.1,1.3651017]
[1642392203087,0.00170527,3266.4,3266.1,3.1302717]
[1642392203284,1.75604632,3268.3,3266.6,0.76503]
[1642392203483,3.7674,3268.5,3266.8,1.53001]
[1642392203683,0.00795792,3267.8,3266.8,1.53001]
[1642392204084,0.0073895,3267.7,3266.8,1.53001]
[1642392204282,0.0073895,3267.7,3267.0,1.52991]
[1642392204482,1.15427142,3268.0,3267.0,1.52991]
[1642392204483,0.00682108,3267.6,3267.0,1.52991]
[1642392204683,0.00682108,3267.6,3267.1,0.76501]
[1642392204984,3.7674,3268.5,3267.1,0.76501]
[1642392204985,0.00625265,3267.5,3267.1,0.76501]
[1642392205191,0.00625265,3267.5,3267.1,1.52996]
[1642392205483,5.36645375,3268.7,3267.4,1.52962]
[1642392205688,2.39219863,3268.7,3267.4,1.52962]
[1642392205929,0.00682108,3268.6,3267.4,1.52962]
[1642392206128,0.00682108,3268.6,3267.8,0.76483]
[1642392206329,0.00350072,3268.5,3267.6,3.0592206]
[1642392206532,0.00350072,3268.5,3267.6,1.52965]
[1642392206730,0.0029323,3268.4,3267.7,0.00104667]
[1642392206930,0.0029323,3268.4,3267.8,0.04919301]
[1642392207129,0.00236387,3268.3,3267.7,0.00104667]
[1642392207536,0.00179545,3268.2,3267.8,1.52953]
[1642392207836,0.95395108,3268.2,3267.9,0.05197306]
[1642392208032,0.00122703,3268.1,3267.7,0.00104667]
[1642392208233,0.00122703,3268.1,3267.7,0.76592667]
[1642392208431,0.00122703,3268.1,3267.7,0.76488]
[1642392208629,0.00122703,3268.1,3267.8,1.2246]
[1642392208831,0.00122703,3268.1,3267.9,1.58050431]
[1642392209033,0.00122703,3268.1,3267.9,1.52946]
[1642392209890,0.00122703,3268.1,3267.8,4.28357]
[1642392210086,0.00122703,3268.1,3267.8,1.2246]
[1642392211593,0.00122703,3268.1,3267.6,0.00161509]
[1642392211789,1.42840401,3267.7,3267.6,0.00161509]
[1642392211990,0.00122703,3268.1,3267.4,0.76495]
[1642392212189,0.00122703,3268.1,3267.1,1.52987]
[1642392212390,0.00122703,3268.1,3267.5,0.00218352]
[1642392212591,0.91582888,3268.0,3267.2,0.00388879]
[1642392212791,0.91582888,3268.0,3267.0,0.00502563]
[1642392212990,0.91582888,3268.0,3267.1,0.76501]
[1642392213440,0.91582888,3268.0,3267.2,0.00388879]
[1642392214338,0.91582888,3268.0,3267.3,0.04250472]
[1642392214539,0.91582888,3268.0,3267.2,0.00388879]
[1642392214737,0.91582888,3268.0,3267.4,0.00275194]
[1642392214937,0.91582888,3268.0,3267.2,0.00388879]
[1642392215940,0.91582888,3268.0,3267.2,0.03820784]
[1642392216137,1.52685244,3267.6,3267.2,0.03820784]
[1642392216337,0.91582888,3268.0,3267.3,0.00332036]
[1642392216736,0.91582888,3268.0,3267.0,0.77007563]
[1642392217077,0.91582888,3268.0,3267.1,0.00445721]
[1642392217281,0.91582888,3268.0,3267.1,0.76947721]
[1642392217477,0.91582888,3268.0,3267.1,2.29935721]
[1642392217680,0.91582888,3268.0,3267.2,0.00388879]
[1642392218377,0.00122703,3268.1,3267.2,0.00388879]
[1642392218582,0.00122703,3268.1,3267.2,0.0521191]
[1642392218779,0.00122703,3268.1,3267.4,2.2947966]
[1642392219181,0.00122703,3268.1,3267.5,0.0745597]
[1642392219381,0.00122703,3268.1,3267.5,0.00218352]
[1642392219581,0.1310375,3269.2,3267.6,2.20161509]
[1642392219781,0.1310375,3269.2,3267.8,0.76487]
[1642392219985,1.39408088,3268.7,3267.8,0.76487]
[1642392220182,1.39408088,3268.7,3267.9,0.00113685]
[1642392220380,0.00284211,3268.6,3267.9,0.00113685]
[1642392220843,0.00227369,3268.5,3267.9,0.00113685]
[1642392221029,0.00227369,3268.5,3268.0,0.05458178]
[1642392221233,0.00170527,3268.4,3268.0,0.05458178]
[1642392221428,0.00170527,3268.4,3267.9,0.00113685]
[1642392221628,0.00113684,3268.3,3267.9,0.00113685]
[1642392221833,1.26654505,3268.2,3267.7,0.0022737]
[1642392222028,0.8913769,3267.9,3267.7,0.0022737]
[1642392222627,1.26654505,3268.2,3267.7,0.0022737]
[1642392222828,0.00284211,3268.6,3267.4,0.76495]
[1642392222829,0.00284211,3268.6,3267.5,0.00341055]
[1642392223030,0.00284211,3268.6,3267.6,0.03912209]
[1642392223230,0.00227369,3268.5,3267.5,0.03802748]
[1642392223430,0.00227369,3268.5,3267.7,0.7671437]
[1642392223630,0.00170527,3268.4,3267.9,0.7648]
[1642392224029,0.00113684,3268.3,3267.9,1.7648]
[1642392224231,0.00113684,3268.3,3268.0,3.41995615]
[1642392224582,0.00454738,3268.9,3268.0,5.91826615]
[1642392224780,0.00454738,3268.9,3268.4,0.04962022]
[1642392224981,0.00397896,3268.8,3268.4,1.20312022]
[1642392225180,0.00397896,3268.8,3268.4,2.1535]
[1642392225381,0.00341054,3268.7,3268.4,2.1535]
[1642392225683,0.00284211,3268.6,3268.4,1.1535]
[1642392225882,0.00284211,3268.6,3268.4,3.68274]
[1642392226080,0.00227369,3268.5,3268.4,3.68274]
[1642392226487,0.00227369,3268.5,3268.4,5.2118942]
[1642392226682,0.00227369,3268.5,3268.4,4.2118942]
[1642392226882,0.00227369,3268.5,3268.4,1.1535]
[1642392227282,0.89427614,3269.5,3268.4,1.1535]
[1642392227683,0.00454739,3269.3,3268.4,1.1535]
[1642392227881,1.25311832,3269.3,3268.4,1.1535]
[1642392228081,0.00397896,3269.2,3268.4,1.1535]
[1642392228534,0.00341054,3269.1,3268.4,1.1535]
[1642392228736,2.4016082,3268.8,3268.4,1.91822]
[1642392228936,2.4016082,3268.8,3268.4,1.1535]
[1642392229141,0.00113685,3268.7,3268.4,1.1535]
[1642392232091,0.00113685,3268.7,3268.5,0.07833919]
[1642392232292,0.00113685,3268.7,3268.4,1.1535]
[1642392235193,0.00113685,3268.7,3268.5,0.05934152]
[1642392235862,0.00113685,3268.7,3268.4,1.1535]
[1642392237745,0.00113685,3268.7,3268.4,1.91822]
[1642392237947,0.00113685,3268.7,3268.4,3.81212]
[1642392238146,0.00113685,3268.7,3268.5,0.04048772]
[1642392238344,0.00113685,3268.7,3268.5,0.7182]
[1642392238548,0.00113685,3268.7,3268.5,2.0182]
[1642392239587,0.00113685,3268.7,3268.5,3.5474]
[1642392239786,0.00113685,3268.7,3268.6,3.61459]
[1642392239983,0.00113685,3268.7,3268.6,3.91459]
[1642392240184,0.00113685,3268.7,3268.6,4.91459]
[1642392240586,0.00113685,3268.7,3268.6,5.82434076]
[1642392240785,0.00113685,3268.7,3268.6,0.76459]
[1642392240987,0.00113685,3268.7,3268.4,1.91822]
[1642392241186,0.00113685,3268.7,3268.4,1.1535]
[1642392241385,0.00113685,3268.7,3268.4,1.91822]
[1642392241585,0.00113685,3268.7,3268.4,2.6828808]
[1642392241989,0.00113685,3268.7,3268.4,1.91822]
[1642392242193,0.00113685,3268.7,3268.5,0.76465]
[1642392242387,0.00113685,3268.7,3268.5,4.03279749]
[1642392242686,0.00113685,3268.7,3268.6,1.0]
[1642392243189,0.00113685,3268.7,3268.5,1.76465]
[1642392243435,0.00113685,3268.7,3268.5,0.76465]
[1642392243633,0.00113685,3268.7,3268.5,1.76465]
[1642392243837,0.00113685,3268.7,3268.4,1.1535]
[1642392246636,0.00113685,3268.7,3268.5,0.03847109]
[1642392247085,0.00113685,3268.7,3268.4,1.1535]
[1642392247886,0.00113685,3268.7,3268.5,0.05683453]
[1642392248091,0.00113685,3268.7,3267.8,0.00170528]
[1642392248092,2.224757,3268.6,3267.8,0.00170528]
[1642392248289,1.11602757,3268.1,3267.8,0.00170528]
[1642392248488,1.11602757,3268.1,3267.6,1.26912973]
[1642392248489,0.02860934,3268.0,3267.7,0.00454739]
[1642392248888,1.11327563,3268.1,3267.7,0.00454739]
[1642392249287,0.368,3268.3,3267.6,7.712e-05]
[1642392249489,0.368,3268.3,3266.7,1.1711]
[1642392249688,0.00284212,3268.2,3266.7,1.1711]
[1642392249894,0.00284212,3268.2,3266.8,0.00511581]
[1642392250089,0.0022737,3268.1,3266.8,0.00511581]
[1642392250290,0.02424125,3268.0,3266.8,0.00511581]
[1642392250491,0.03439212,3267.3,3266.8,0.00511581]
[1642392250848,3.68141116,3268.2,3266.8,0.00511581]
[1642392250849,0.00113685,3267.9,3266.8,0.29245837]
[1642392251240,0.0022737,3268.1,3266.9,0.00454739]
[1642392251640,0.00170527,3268.0,3266.9,0.00454739]
[1642392251939,0.00113685,3267.9,3267.4,0.7649296]
[1642392252341,0.0022737,3268.1,3267.6,0.02468211]
[1642392252545,0.0022737,3268.1,3267.6,1.1334]
[1642392252839,0.00170527,3268.0,3267.7,0.76472]
[1642392253044,0.00170527,3268.0,3267.7,1.82369823]
[1642392253240,0.00113685,3267.9,3267.8,0.76475]
[1642392253440,0.00113685,3267.9,3267.8,1.64275]
[1642392253642,0.00113685,3267.9,3267.8,3.84055]
[1642392254695,0.00113685,3267.9,3267.8,4.12789256]
[1642392254887,0.00113685,3267.9,3267.8,4.42789256]
[1642392255093,4.80006129,3269.2,3267.9,4.2]
[1642392255290,1.83515059,3269.2,3268.4,0.76468]
[1642392255489,0.00682108,3269.1,3268.5,0.76464]
[1642392255890,0.00625266,3269.0,3268.5,0.76464]
[1642392256393,0.00568423,3268.9,3268.5,0.76464]
[1642392256590,0.00568423,3268.9,3268.4,0.76468]
[1642392256792,0.00511581,3268.8,3268.4,0.76468]
[1642392257291,0.00454739,3268.7,3268.6,0.28734256]
[1642392258349,0.00454739,3268.7,3268.6,1.05197256]
[1642392258740,0.00454739,3268.7,3268.6,1.19017253]
[1642392258941,0.00454739,3268.7,3268.6,1.97787595]
[1642392259140,5.27594632,3270.3,3268.6,2.97787595]
[1642392259340,5.27594632,3270.3,3268.8,0.76461]
[1642392259541,1.5360991,3270.1,3268.8,1.76461]
[1642392260040,0.0073895,3270.0,3268.8,1.0]
[1642392260247,0.0073895,3270.0,3268.7,5.0945]
[1642392260441,0.00682108,3269.9,3268.7,5.0945]
[1642392260640,0.00682108,3269.9,3268.8,1.0]
[1642392260841,0.00625265,3269.8,3268.8,1.0]
[1642392261041,1.33116956,3269.6,3268.8,1.0]
[1642392261441,0.02939988,3269.5,3268.8,1.0]
[1642392261642,0.02939988,3269.5,3268.7,1.174]
[1642392261643,0.00454738,3269.5,3268.7,1.174]
[1642392261845,0.00397896,3269.4,3268.7,1.174]
[1642392262292,0.03275824,3269.2,3268.3,0.00716247]
[1642392262496,0.00341054,3269.3,3267.8,4.96699997]